[Event "*** SCC Grand Prix: Titled Tuesday Blitz"]
[Site "Chess.com"]
[Date "2020.08.11"]
[Round "10"]
[White "elcandado"]
[Black "Tekushka"]
[Result "0-1"]
[WhiteElo "2521"]
[BlackElo "2372"]
[TimeControl "180+1"]
[EndTime "11:59:03 PDT"]
[Termination "Tekushka won on time"]

1. d4 {[%clk 0:03:00.9]} 1... Nf6 {[%clk 0:02:59.1]} 2. Bf4 {[%clk 0:03:00]}
2... c5 {[%clk 0:02:58.4]} 3. c3 {[%clk 0:02:59.7]} 3... cxd4 {[%clk 0:02:56.2]}
4. cxd4 {[%clk 0:02:59.3]} 4... d5 {[%clk 0:02:56.5]} 5. Nc3 {[%clk 0:02:58.9]}
5... Nc6 {[%clk 0:02:56.8]} 6. e3 {[%clk 0:02:58.6]} 6... Bf5 {[%clk 0:02:57]}
7. Bd3 {[%clk 0:02:55.3]} 7... Bxd3 {[%clk 0:02:56.3]} 8. Qxd3 {[%clk
0:02:56.2]} 8... e6 {[%clk 0:02:56.6]} 9. Nf3 {[%clk 0:02:55.3]} 9... Be7 {[%clk
0:02:53.8]} 10. h3 {[%clk 0:02:54.4]} 10... O-O {[%clk 0:02:51.4]} 11. O-O
{[%clk 0:02:53.9]} 11... Rc8 {[%clk 0:02:49.2]} 12. Rfc1 {[%clk 0:02:53.2]}
12... Qb6 {[%clk 0:02:10.2]} 13. Na4 {[%clk 0:02:51.1]} 13... Qb4 {[%clk
0:02:09.3]} 14. b3 {[%clk 0:02:37.5]} 14... Ne4 {[%clk 0:01:56.7]} 15. Qd1
{[%clk 0:02:19.5]} 15... b5 {[%clk 0:01:48.2]} 16. a3 {[%clk 0:02:13.6]} 16...
Qa5 {[%clk 0:01:46.5]} 17. Nc5 {[%clk 0:02:11.7]} 17... Bxc5 {[%clk 0:01:09.5]}
18. dxc5 {[%clk 0:02:10.8]} 18... b4 {[%clk 0:01:10.1]} 19. axb4 {[%clk
0:02:03.9]} 19... Qxb4 {[%clk 0:01:10.3]} 20. Ra4 {[%clk 0:01:58.9]} 20... Qb7
{[%clk 0:00:58.7]} 21. Nd4 {[%clk 0:01:43.7]} 21... e5 {[%clk 0:00:29.4]} 22.
Nxc6 {[%clk 0:01:42.8]} 22... exf4 {[%clk 0:00:28.9]} 23. Nxa7 {[%clk
0:01:22.6]} 23... fxe3 {[%clk 0:00:18.3]} 24. f3 {[%clk 0:01:05]} 24... Ng3
{[%clk 0:00:12.4]} 25. Nxc8 {[%clk 0:01:00.7]} 25... Rxc8 {[%clk 0:00:12.2]} 26.
Rg4 {[%clk 0:00:56.3]} 26... Nf5 {[%clk 0:00:11.2]} 27. Qd3 {[%clk 0:00:52]}
27... Qd7 {[%clk 0:00:11.1]} 28. c6 {[%clk 0:00:47.1]} 28... Qe6 {[%clk
0:00:11]} 29. c7 {[%clk 0:00:43.1]} 29... g6 {[%clk 0:00:11.1]} 30. b4 {[%clk
0:00:39.5]} 30... e2 {[%clk 0:00:11.2]} 31. Re1 {[%clk 0:00:37]} 31... Qb6+
{[%clk 0:00:11.1]} 32. Kh1 {[%clk 0:00:35.4]} 32... Qxc7 {[%clk 0:00:10.8]} 33.
Qxf5 {[%clk 0:00:28]} 33... Re8 {[%clk 0:00:10.1]} 34. Qb1 {[%clk 0:00:20.6]}
34... Qe7 {[%clk 0:00:09]} 35. b5 {[%clk 0:00:19.9]} 35... Qe3 {[%clk
0:00:08.2]} 36. b6 {[%clk 0:00:14.4]} 36... Rb8 {[%clk 0:00:08.8]} 37. b7 {[%clk
0:00:13.3]} 37... Qf2 {[%clk 0:00:07.9]} 38. Rb4 {[%clk 0:00:10.4]} 38... d4
{[%clk 0:00:06.2]} 39. Qc1 {[%clk 0:00:07]} 39... d3 {[%clk 0:00:06]} 40. Qc8+
{[%clk 0:00:06.3]} 40... Kg7 {[%clk 0:00:06.7]} 41. Qc3+ {[%clk 0:00:06]} 41...
f6 {[%clk 0:00:06.1]} 42. Rbb1 {[%clk 0:00:06.9]} 42... Rxb7 {[%clk 0:00:05.2]}
43. Rxb7+ {[%clk 0:00:06.4]} 43... Kh6 {[%clk 0:00:04.5]} 44. Rbb1 {[%clk
0:00:06.7]} 44... g5 {[%clk 0:00:04.4]} 45. Qd2 {[%clk 0:00:06.5]} 45... Kg6
{[%clk 0:00:04.3]} 46. Rb3 {[%clk 0:00:06.4]} 46... h5 {[%clk 0:00:03.9]} 47.
Rxd3 {[%clk 0:00:07.3]} 47... Qf1+ {[%clk 0:00:03.5]} 48. Rxf1 {[%clk
0:00:06.8]} 48... exf1=Q+ {[%clk 0:00:03.3]} 49. Kh2 {[%clk 0:00:07.7]} 49...
Qb1 {[%clk 0:00:02.9]} 50. Qe3 {[%clk 0:00:07.1]} 50... Qb8+ {[%clk 0:00:02.6]}
51. Kh1 {[%clk 0:00:05.1]} 51... Qb1+ {[%clk 0:00:02.6]} 52. Kh2 {[%clk
0:00:03.4]} 52... Qb8+ {[%clk 0:00:03.3]} 53. f4 {[%clk 0:00:03.2]} 53... h4
{[%clk 0:00:03.3]} 54. Qf3 {[%clk 0:00:02.5]} 54... Kh6 {[%clk 0:00:04.1]} 0-1

[Event "*** SCC Grand Prix: Titled Tuesday Blitz"]
[Site "Chess.com"]
[Date "2020.08.11"]
[Round "10"]
[White "BlackWidow515"]
[Black "Evachess2006"]
[Result "1-0"]
[WhiteElo "2077"]
[BlackElo "1630"]
[TimeControl "180+1"]
[EndTime "11:59:03 PDT"]
[Termination "BlackWidow515 won by resignation"]

1. d4 {[%clk 0:03:00]} 1... d5 {[%clk 0:02:57.5]} 2. Nf3 {[%clk 0:03:00.3]} 2...
Nf6 {[%clk 0:02:56.6]} 3. e3 {[%clk 0:03:00.6]} 3... Bf5 {[%clk 0:02:54.6]} 4.
c4 {[%clk 0:03:01.1]} 4... e6 {[%clk 0:02:54.3]} 5. Nc3 {[%clk 0:03:01.1]} 5...
Bb4 {[%clk 0:02:50.9]} 6. Qa4+ {[%clk 0:02:46]} 6... Nc6 {[%clk 0:02:46.5]} 7.
Ne5 {[%clk 0:02:42.9]} 7... O-O {[%clk 0:02:30.1]} 8. Nxc6 {[%clk 0:02:39.3]}
8... Bxc3+ {[%clk 0:02:24.4]} 9. bxc3 {[%clk 0:02:39]} 9... Qd7 {[%clk
0:02:14.6]} 10. Ba3 {[%clk 0:02:14]} 10... Rfe8 {[%clk 0:02:07.5]} 11. Be2
{[%clk 0:01:38.5]} 11... bxc6 {[%clk 0:01:59.8]} 12. O-O {[%clk 0:01:32.6]}
12... Red8 {[%clk 0:01:38.6]} 13. Bc5 {[%clk 0:01:29.5]} 13... Ne4 {[%clk
0:01:28.2]} 14. Bb4 {[%clk 0:01:25.1]} 14... Nd2 {[%clk 0:01:00.2]} 15. cxd5
{[%clk 0:01:04.3]} 15... Nxf1 {[%clk 0:00:46.1]} 16. dxc6 {[%clk 0:01:02.6]}
16... Qd5 {[%clk 0:00:37.5]} 17. Rxf1 {[%clk 0:01:00.2]} 17... a5 {[%clk
0:00:33.1]} 18. Bc5 {[%clk 0:00:45]} 18... Be4 {[%clk 0:00:31.4]} 19. f3 {[%clk
0:00:40.8]} 19... Bg6 {[%clk 0:00:12.1]} 20. e4 {[%clk 0:00:40.5]} 20... Qg5
{[%clk 0:00:12.4]} 21. Kf2 {[%clk 0:00:33.6]} 21... e5 {[%clk 0:00:11.3]} 22. d5
{[%clk 0:00:32.2]} 22... f5 {[%clk 0:00:09.2]} 23. exf5 {[%clk 0:00:19]} 23...
Bxf5 {[%clk 0:00:10.1]} 24. Qc4 {[%clk 0:00:13.8]} 24... Kh8 {[%clk 0:00:05.8]}
25. Rb1 {[%clk 0:00:13.6]} 25... Bxb1 {[%clk 0:00:04.1]} 26. Be3 {[%clk
0:00:07.9]} 26... Qg6 {[%clk 0:00:02.6]} 27. Qc5 {[%clk 0:00:07.6]} 27... Bf5
{[%clk 0:00:02.4]} 28. Qc4 {[%clk 0:00:07.8]} 28... Rab8 {[%clk 0:00:02.6]} 29.
g4 {[%clk 0:00:08.1]} 29... Rb2 {[%clk 0:00:01.7]} 30. gxf5 {[%clk 0:00:07.8]}
30... Rxe2+ {[%clk 0:00:02.6]} 31. Qxe2 {[%clk 0:00:07.9]} 31... Qxf5 {[%clk
0:00:03.5]} 32. Qd2 {[%clk 0:00:08.4]} 32... Qf7 {[%clk 0:00:02.4]} 33. Qd1
{[%clk 0:00:09]} 33... Qe7 {[%clk 0:00:02.9]} 34. c4 {[%clk 0:00:08.9]} 34...
Qd6 {[%clk 0:00:03.8]} 35. Qa4 {[%clk 0:00:08]} 35... Qb4 {[%clk 0:00:04.7]} 36.
Qxb4 {[%clk 0:00:07.8]} 36... axb4 {[%clk 0:00:05.6]} 37. Bc5 {[%clk 0:00:07.6]}
37... b3 {[%clk 0:00:06.5]} 38. axb3 {[%clk 0:00:07.5]} 38... Rb8 {[%clk
0:00:07.4]} 39. d6 {[%clk 0:00:07.4]} 39... Ra8 {[%clk 0:00:08.3]} 40. d7 {[%clk
0:00:07.2]} 40... Rd8 {[%clk 0:00:07.8]} 41. Be7 {[%clk 0:00:07.2]} 41... Ra8
{[%clk 0:00:07.9]} 42. d8=Q+ {[%clk 0:00:07]} 42... Rxd8 {[%clk 0:00:08.4]} 43.
Bxd8 {[%clk 0:00:07.6]} 43... Kg8 {[%clk 0:00:08.8]} 44. Bxc7 {[%clk 0:00:08]}
44... Kf7 {[%clk 0:00:09.7]} 45. Bxe5 {[%clk 0:00:08.5]} 45... Ke7 {[%clk
0:00:10]} 46. c7 {[%clk 0:00:09.1]} 46... Kd7 {[%clk 0:00:10.7]} 47. Bxg7 {[%clk
0:00:09.7]} 47... Kc8 {[%clk 0:00:11.3]} 48. Be5 {[%clk 0:00:10.2]} 48... Kd7
{[%clk 0:00:10.7]} 49. Kg3 {[%clk 0:00:10.9]} 49... Kc8 {[%clk 0:00:11.5]} 50.
Kh4 {[%clk 0:00:11.5]} 50... Kd7 {[%clk 0:00:12.4]} 51. Kh5 {[%clk 0:00:12.1]}
51... Kc8 {[%clk 0:00:13.3]} 52. Kh6 {[%clk 0:00:12.7]} 52... Kd7 {[%clk
0:00:14.2]} 53. Kxh7 {[%clk 0:00:13.3]} 53... Kc8 {[%clk 0:00:15.1]} 54. Kg7
{[%clk 0:00:13.9]} 54... Kd7 {[%clk 0:00:16]} 55. Kf7 {[%clk 0:00:14.5]} 55...
Kc8 {[%clk 0:00:16.9]} 56. Ke7 {[%clk 0:00:15]} 56... Kb7 {[%clk 0:00:16.4]} 57.
Kd7 {[%clk 0:00:15.1]} 57... Kb6 {[%clk 0:00:17.3]} 58. Ba1 {[%clk 0:00:15.2]}
58... Kc5 {[%clk 0:00:18.2]} 59. c8=Q+ {[%clk 0:00:14.8]} 59... Kb4 {[%clk
0:00:19.1]} 60. c5 {[%clk 0:00:14.8]} 60... Kxb3 {[%clk 0:00:20]} 61. c6 {[%clk
0:00:15.4]} 61... Kc4 {[%clk 0:00:20.9]} 62. c7 {[%clk 0:00:16]} 62... Kd3
{[%clk 0:00:21.8]} 63. Qe8 {[%clk 0:00:16.1]} 63... Kc4 {[%clk 0:00:20.2]} 64.
c8=Q+ {[%clk 0:00:15.9]} 1-0

[Event "*** SCC Grand Prix: Titled Tuesday Blitz"]
[Site "Chess.com"]
[Date "2020.08.11"]
[Round "10"]
[White "bugbug01052018"]
[Black "Sultanasharminshirin"]
[Result "0-1"]
[WhiteElo "2147"]
[BlackElo "2026"]
[TimeControl "180+1"]
[EndTime "11:59:05 PDT"]
[Termination "Sultanasharminshirin won by resignation"]

1. d4 {[%clk 0:03:00.9]} 1... d5 {[%clk 0:02:58.9]} 2. c4 {[%clk 0:02:56.6]}
2... c6 {[%clk 0:02:58.1]} 3. Nf3 {[%clk 0:02:54.7]} 3... Nf6 {[%clk 0:02:58.1]}
4. g3 {[%clk 0:02:55.6]} 4... Bf5 {[%clk 0:02:56.1]} 5. Bg2 {[%clk 0:02:56.5]}
5... e6 {[%clk 0:02:56.4]} 6. O-O {[%clk 0:02:54.7]} 6... h6 {[%clk 0:02:56.7]}
7. Nc3 {[%clk 0:02:50.9]} 7... Nbd7 {[%clk 0:02:56.9]} 8. Qb3 {[%clk 0:02:43.7]}
8... Qb6 {[%clk 0:02:55.5]} 9. c5 {[%clk 0:02:32.5]} 9... Qxb3 {[%clk 0:02:54]}
10. axb3 {[%clk 0:02:33.4]} 10... Be7 {[%clk 0:02:51.2]} 11. b4 {[%clk
0:02:33.6]} 11... a6 {[%clk 0:02:50.8]} 12. Bf4 {[%clk 0:02:33.3]} 12... O-O
{[%clk 0:02:50.2]} 13. Nd2 {[%clk 0:01:56.6]} 13... Nh5 {[%clk 0:02:38.5]} 14.
Bc7 {[%clk 0:01:53]} 14... Rac8 {[%clk 0:02:29.1]} 15. Bf4 {[%clk 0:01:44.9]}
15... Nxf4 {[%clk 0:02:27.2]} 16. gxf4 {[%clk 0:01:45.8]} 16... f6 {[%clk
0:02:22.1]} 17. Nb3 {[%clk 0:01:32.9]} 17... e5 {[%clk 0:02:08.9]} 18. fxe5
{[%clk 0:01:24.5]} 18... fxe5 {[%clk 0:02:08.2]} 19. e3 {[%clk 0:01:24.6]} 19...
Rf6 {[%clk 0:01:48.8]} 20. Na5 {[%clk 0:01:20.5]} 20... Rc7 {[%clk 0:01:47.8]}
21. f4 {[%clk 0:01:17.7]} 21... e4 {[%clk 0:01:43.2]} 22. Kh1 {[%clk 0:01:09.6]}
22... Rg6 {[%clk 0:01:42.1]} 23. Nb3 {[%clk 0:00:44.1]} 23... Nf6 {[%clk
0:01:39.1]} 24. Ne2 {[%clk 0:00:29.1]} 24... Ng4 {[%clk 0:01:37.3]} 25. Ng3
{[%clk 0:00:29.2]} 25... Nxe3 {[%clk 0:01:20.2]} 26. Nxf5 {[%clk 0:00:17.9]}
26... Nxg2 {[%clk 0:01:00.6]} 27. Nxe7+ {[%clk 0:00:16]} 27... Rxe7 {[%clk
0:01:00.6]} 28. f5 {[%clk 0:00:16.6]} 28... Rg5 {[%clk 0:00:56.1]} 29. f6 {[%clk
0:00:16.5]} 29... gxf6 {[%clk 0:00:55.3]} 30. Rxf6 {[%clk 0:00:17.4]} 30... Kg7
{[%clk 0:00:55.4]} 31. Rf2 {[%clk 0:00:16.9]} 31... Nh4 {[%clk 0:00:52.2]} 32.
Re1 {[%clk 0:00:12.9]} 32... Nf5 {[%clk 0:00:45.5]} 33. Rf4 {[%clk 0:00:10.4]}
33... Kg6 {[%clk 0:00:44.2]} 34. h4 {[%clk 0:00:09.9]} 34... Rg3 {[%clk
0:00:37.6]} 35. Kh2 {[%clk 0:00:09.8]} 35... Rxb3 {[%clk 0:00:35.5]} 36. Rg1+
{[%clk 0:00:09.8]} 36... Kf6 {[%clk 0:00:33.8]} 37. h5 {[%clk 0:00:09.9]} 37...
Rxb2+ {[%clk 0:00:33.5]} 38. Kh3 {[%clk 0:00:09.8]} 38... Rg7 {[%clk 0:00:32.6]}
39. Rxg7 {[%clk 0:00:09.4]} 39... Kxg7 {[%clk 0:00:32.4]} 40. Rxf5 {[%clk
0:00:10.3]} 40... Rxb4 {[%clk 0:00:32.2]} 41. Re5 {[%clk 0:00:10.6]} 41... Kf6
{[%clk 0:00:29]} 42. Re8 {[%clk 0:00:10.5]} 42... Rxd4 {[%clk 0:00:27.3]} 43.
Rd8 {[%clk 0:00:10.5]} 43... e3 {[%clk 0:00:25.7]} 44. Rd6+ {[%clk 0:00:10.4]}
44... Kg5 {[%clk 0:00:25.2]} 45. Re6 {[%clk 0:00:08.4]} 45... Re4 {[%clk
0:00:21.2]} 46. Rg6+ {[%clk 0:00:08.3]} 46... Kxh5 {[%clk 0:00:20.6]} 47. Rg1
{[%clk 0:00:09.2]} 47... e2 {[%clk 0:00:20.1]} 48. Re1 {[%clk 0:00:10.1]} 48...
d4 {[%clk 0:00:20.4]} 49. Kg3 {[%clk 0:00:11]} 49... d3 {[%clk 0:00:20.3]} 50.
Kf3 {[%clk 0:00:10.9]} 50... Re6 {[%clk 0:00:20.2]} 51. Kf2 {[%clk 0:00:09.5]}
51... Kg4 {[%clk 0:00:19.7]} 52. Rh1 {[%clk 0:00:10.4]} 52... h5 {[%clk
0:00:18.5]} 53. Ke1 {[%clk 0:00:10.4]} 53... h4 {[%clk 0:00:16.3]} 54. Kd2
{[%clk 0:00:09.3]} 54... Kg3 {[%clk 0:00:14.1]} 55. Rg1+ {[%clk 0:00:08.8]}
55... Kf2 {[%clk 0:00:13.5]} 56. Rh1 {[%clk 0:00:09]} 56... e1=Q+ {[%clk
0:00:10.9]} 0-1

[Event "*** SCC Grand Prix: Titled Tuesday Blitz"]
[Site "Chess.com"]
[Date "2020.08.11"]
[Round "10"]
[White "GianmarcoVaR"]
[Black "frederiksvane"]
[Result "0-1"]
[WhiteElo "2453"]
[BlackElo "2579"]
[TimeControl "180+1"]
[EndTime "11:59:08 PDT"]
[Termination "frederiksvane won by resignation"]

1. e4 {[%clk 0:02:59.6]} 1... c5 {[%clk 0:02:52.5]} 2. Nf3 {[%clk 0:02:57.5]}
2... g6 {[%clk 0:02:52.8]} 3. d4 {[%clk 0:02:54]} 3... cxd4 {[%clk 0:02:53.7]}
4. Nxd4 {[%clk 0:02:54.7]} 4... Bg7 {[%clk 0:02:53.9]} 5. c4 {[%clk 0:02:51.8]}
5... Nc6 {[%clk 0:02:54.2]} 6. Be3 {[%clk 0:02:51.5]} 6... Nf6 {[%clk
0:02:54.9]} 7. Nc3 {[%clk 0:02:51.9]} 7... O-O {[%clk 0:02:55.3]} 8. Be2 {[%clk
0:02:49]} 8... d6 {[%clk 0:02:55.3]} 9. O-O {[%clk 0:02:48.3]} 9... Bd7 {[%clk
0:02:55.4]} 10. Qd2 {[%clk 0:02:46.5]} 10... Nxd4 {[%clk 0:02:55.6]} 11. Bxd4
{[%clk 0:02:47.4]} 11... Bc6 {[%clk 0:02:56.4]} 12. f3 {[%clk 0:02:47.2]} 12...
Nd7 {[%clk 0:02:56.3]} 13. Be3 {[%clk 0:02:46.3]} 13... a5 {[%clk 0:02:53.7]}
14. b3 {[%clk 0:02:44.9]} 14... Nc5 {[%clk 0:02:53.5]} 15. Rab1 {[%clk
0:02:43.4]} 15... Qb6 {[%clk 0:02:53.6]} 16. Rfc1 {[%clk 0:02:02.9]} 16... Rfc8
{[%clk 0:02:52.7]} 17. Rc2 {[%clk 0:01:57.1]} 17... Qd8 {[%clk 0:02:50.9]} 18.
Bf1 {[%clk 0:01:52.9]} 18... h5 {[%clk 0:02:50.2]} 19. Rd1 {[%clk 0:01:49.9]}
19... Kh7 {[%clk 0:02:48.2]} 20. Rdc1 {[%clk 0:01:47.5]} 20... Qh8 {[%clk
0:02:47.1]} 21. Nb5 {[%clk 0:01:47.4]} 21... Ne6 {[%clk 0:02:38.7]} 22. Kh1
{[%clk 0:01:41.8]} 22... Bf6 {[%clk 0:01:57.9]} 23. Na7 {[%clk 0:01:34]} 23...
Rc7 {[%clk 0:01:50.3]} 24. Bb6 {[%clk 0:01:33.5]} 24... Bd4 {[%clk 0:01:28.1]}
25. Bxc7 {[%clk 0:01:22.6]} 25... Nxc7 {[%clk 0:01:20.8]} 26. Nxc6 {[%clk
0:01:07.7]} 26... bxc6 {[%clk 0:01:21.7]} 27. c5 {[%clk 0:01:06.2]} 27... dxc5
{[%clk 0:01:14.5]} 28. Qf4 {[%clk 0:01:04.5]} 28... Nb5 {[%clk 0:01:04]} 29.
Qxf7+ {[%clk 0:01:03.5]} 29... Qg7 {[%clk 0:01:03.9]} 30. Qe6 {[%clk 0:00:54.4]}
30... Qf6 {[%clk 0:01:01.2]} 31. Qd7 {[%clk 0:00:31.9]} 31... Qd6 {[%clk
0:00:58.2]} 32. Qxd6 {[%clk 0:00:26.5]} 32... exd6 {[%clk 0:00:48.3]} 33. a4
{[%clk 0:00:23.7]} 33... Nc7 {[%clk 0:00:44.2]} 34. g3 {[%clk 0:00:21.8]} 34...
Rb8 {[%clk 0:00:42.3]} 35. Bc4 {[%clk 0:00:21.7]} 35... d5 {[%clk 0:00:42.7]}
36. exd5 {[%clk 0:00:22.1]} 36... cxd5 {[%clk 0:00:43.6]} 37. Bb5 {[%clk
0:00:22.2]} 37... Nxb5 {[%clk 0:00:44.1]} 38. axb5 {[%clk 0:00:23.1]} 38... Rxb5
{[%clk 0:00:45]} 39. Ra2 {[%clk 0:00:20.4]} 39... Rxb3 {[%clk 0:00:41.5]} 40.
Kg2 {[%clk 0:00:20.6]} 40... Bc3 {[%clk 0:00:38]} 41. Re2 {[%clk 0:00:04.6]}
41... a4 {[%clk 0:00:26.3]} 42. Kh3 {[%clk 0:00:04.5]} 42... a3 {[%clk
0:00:23.6]} 43. Re7+ {[%clk 0:00:03.5]} 43... Kh6 {[%clk 0:00:15.7]} 44. Rc2
{[%clk 0:00:04]} 44... Bb2 {[%clk 0:00:11.7]} 45. Rxc5 {[%clk 0:00:03.4]} 45...
a2 {[%clk 0:00:11.9]} 46. Rcc7 {[%clk 0:00:02.8]} 46... a1=Q {[%clk 0:00:10.9]}
47. Rh7+ {[%clk 0:00:01.7]} 47... Kg5 {[%clk 0:00:10.7]} 48. Rcf7 {[%clk
0:00:02.6]} 48... Bf6 {[%clk 0:00:06.5]} 49. f4+ {[%clk 0:00:01.9]} 49... Kf5
{[%clk 0:00:06.7]} 50. Rxf6+ {[%clk 0:00:01.1]} 50... Qxf6 {[%clk 0:00:06]} 51.
Ra7 {[%clk 0:00:02]} 51... Qc3 {[%clk 0:00:05.1]} 52. Rf7+ {[%clk 0:00:02]}
52... Ke4 {[%clk 0:00:05.5]} 53. Re7+ {[%clk 0:00:02.2]} 53... Kf3 {[%clk
0:00:06.1]} 54. Re6 {[%clk 0:00:03.1]} 54... Qd3 {[%clk 0:00:06.4]} 55. Re5
{[%clk 0:00:03.1]} 55... Qf5+ {[%clk 0:00:05.4]} 56. Rxf5 {[%clk 0:00:03.4]}
56... gxf5 {[%clk 0:00:06.3]} 57. Kh4 {[%clk 0:00:04.1]} 57... d4 {[%clk
0:00:07.1]} 58. Kg5 {[%clk 0:00:05]} 58... d3 {[%clk 0:00:08]} 59. Kxh5 {[%clk
0:00:04.2]} 59... d2 {[%clk 0:00:08.1]} 60. Kg5 {[%clk 0:00:04.5]} 60... d1=Q
{[%clk 0:00:08.5]} 0-1

[Event "*** SCC Grand Prix: Titled Tuesday Blitz"]
[Site "Chess.com"]
[Date "2020.08.11"]
[Round "10"]
[White "KarpovVadim"]
[Black "Lion-Al-Messi"]
[Result "0-1"]
[WhiteElo "2310"]
[BlackElo "2506"]
[TimeControl "180+1"]
[EndTime "11:59:12 PDT"]
[Termination "Lion-Al-Messi won by resignation"]

1. d4 {[%clk 0:03:00.9]} 1... d5 {[%clk 0:02:53.5]} 2. c4 {[%clk 0:02:59.6]}
2... c6 {[%clk 0:02:54]} 3. cxd5 {[%clk 0:02:56.4]} 3... cxd5 {[%clk 0:02:54.9]}
4. Bg5 {[%clk 0:02:56.3]} 4... Nc6 {[%clk 0:02:50.1]} 5. e3 {[%clk 0:02:49.7]}
5... Bf5 {[%clk 0:02:42.9]} 6. Nc3 {[%clk 0:02:48.3]} 6... h6 {[%clk 0:02:32.5]}
7. Bh4 {[%clk 0:02:47.4]} 7... Nf6 {[%clk 0:02:27]} 8. Bxf6 {[%clk 0:02:46]}
8... exf6 {[%clk 0:02:27.9]} 9. Bd3 {[%clk 0:02:45.9]} 9... Be6 {[%clk
0:02:25.6]} 10. Nge2 {[%clk 0:02:43.2]} 10... Bd6 {[%clk 0:02:25.2]} 11. O-O
{[%clk 0:02:41.7]} 11... O-O {[%clk 0:02:25.4]} 12. Rc1 {[%clk 0:02:39.8]} 12...
Rc8 {[%clk 0:02:25]} 13. a3 {[%clk 0:02:23.9]} 13... Bb8 {[%clk 0:02:23.9]} 14.
b4 {[%clk 0:02:21.2]} 14... a5 {[%clk 0:02:23]} 15. b5 {[%clk 0:02:19]} 15...
Ne7 {[%clk 0:02:23.2]} 16. g3 {[%clk 0:02:10.2]} 16... Ng6 {[%clk 0:02:21.7]}
17. Na4 {[%clk 0:02:00.8]} 17... b6 {[%clk 0:02:19.9]} 18. Rxc8 {[%clk
0:01:57.7]} 18... Bxc8 {[%clk 0:02:20.8]} 19. Qb3 {[%clk 0:01:55.2]} 19... Qd6
{[%clk 0:02:16.4]} 20. Rc1 {[%clk 0:01:53.4]} 20... Bd7 {[%clk 0:02:14.5]} 21.
Bxg6 {[%clk 0:01:49.5]} 21... fxg6 {[%clk 0:02:15.4]} 22. Nf4 {[%clk 0:01:49.5]}
22... Kh7 {[%clk 0:02:12.4]} 23. Qxd5 {[%clk 0:01:45.6]} 23... Qxd5 {[%clk
0:02:12.1]} 24. Nxd5 {[%clk 0:01:44.4]} 24... Bxb5 {[%clk 0:02:13]} 25. Naxb6
{[%clk 0:01:43.4]} 25... Bd6 {[%clk 0:02:07.6]} 26. a4 {[%clk 0:01:38.7]} 26...
Bd3 {[%clk 0:02:04]} 27. f3 {[%clk 0:01:25.8]} 27... Rd8 {[%clk 0:02:01]} 28.
Kf2 {[%clk 0:01:21.4]} 28... h5 {[%clk 0:01:53]} 29. Rc8 {[%clk 0:01:17.4]}
29... Rxc8 {[%clk 0:01:45.5]} 30. Nxc8 {[%clk 0:01:18.3]} 30... Ba3 {[%clk
0:01:40.3]} 31. Ncb6 {[%clk 0:01:11.6]} 31... Bc2 {[%clk 0:01:39.6]} 32. Nc4
{[%clk 0:01:06.4]} 32... Bf8 {[%clk 0:01:38]} 33. Nxa5 {[%clk 0:01:04.1]} 33...
Bxa4 {[%clk 0:01:38]} 34. Nc4 {[%clk 0:01:04]} 34... Bb3 {[%clk 0:01:37.6]} 35.
Ndb6 {[%clk 0:01:03]} 35... Kg8 {[%clk 0:01:35]} 36. Nd2 {[%clk 0:01:02.8]}
36... Bc2 {[%clk 0:01:33.5]} 37. e4 {[%clk 0:01:02.2]} 37... Kf7 {[%clk
0:01:32.4]} 38. Ke3 {[%clk 0:01:00.9]} 38... g5 {[%clk 0:01:32.1]} 39. Nbc4
{[%clk 0:00:56.6]} 39... h4 {[%clk 0:01:31.2]} 40. f4 {[%clk 0:00:51.7]} 40...
gxf4+ {[%clk 0:01:27.8]} 41. gxf4 {[%clk 0:00:50]} 41... Bb4 {[%clk 0:01:26.3]}
42. h3 {[%clk 0:00:45.2]} 42... Ba4 {[%clk 0:01:20]} 43. Nf3 {[%clk 0:00:43]}
43... Bd7 {[%clk 0:01:12.6]} 44. f5 {[%clk 0:00:40.6]} 44... Bb5 {[%clk
0:00:57.2]} 45. Nb2 {[%clk 0:00:37.8]} 45... Bf1 {[%clk 0:00:55.6]} 46. Nd3
{[%clk 0:00:37.7]} 46... Ba5 {[%clk 0:00:50.8]} 47. Nf4 {[%clk 0:00:33.5]} 47...
Bc7 {[%clk 0:00:40.3]} 48. e5 {[%clk 0:00:30.4]} 48... fxe5 {[%clk 0:00:33.5]}
49. dxe5 {[%clk 0:00:31.3]} 49... Bb8 {[%clk 0:00:28.2]} 50. Ke4 {[%clk
0:00:29.1]} 50... Bb5 {[%clk 0:00:15.4]} 51. Kd5 {[%clk 0:00:21.5]} 51... Ba6
{[%clk 0:00:13.5]} 52. Nxh4 {[%clk 0:00:19.6]} 52... Bb7+ {[%clk 0:00:13.8]} 53.
Kc5 {[%clk 0:00:16.9]} 53... Bxe5 {[%clk 0:00:13.6]} 54. Nfg6 {[%clk 0:00:16.3]}
54... Bg3 {[%clk 0:00:10]} 55. Nh8+ {[%clk 0:00:15.8]} 55... Kf6 {[%clk
0:00:09.6]} 56. N4g6 {[%clk 0:00:15.4]} 56... Kxf5 {[%clk 0:00:07.2]} 57. Ne7+
{[%clk 0:00:12.3]} 57... Ke6 {[%clk 0:00:07.6]} 58. Nhg6 {[%clk 0:00:10]} 58...
Be4 {[%clk 0:00:05.1]} 59. Kd4 {[%clk 0:00:08.8]} 59... Bb1 {[%clk 0:00:05.1]}
60. Ke3 {[%clk 0:00:05.3]} 60... Bd6 {[%clk 0:00:04.8]} 61. h4 {[%clk
0:00:02.9]} 61... Bxe7 {[%clk 0:00:04.6]} 62. Nxe7 {[%clk 0:00:03.3]} 62... Kxe7
{[%clk 0:00:05.5]} 63. h5 {[%clk 0:00:04.2]} 63... Kf6 {[%clk 0:00:05.8]} 64. h6
{[%clk 0:00:05.1]} 64... gxh6 {[%clk 0:00:05]} 0-1